[Event "EWCCC Online Preliminary-D 2020"]
[Site "Online"]
[Date "2020.12.19"]
[Round "8.3"]
[White "Narva, Regina"]
[Black "Maisuradze, Nino"]
[Result "0-1"]
[ECO "B30"]
[WhiteElo "1901"]
[BlackElo "2214"]
[Annotator "NA RC"]
[PlyCount "58"]
[EventDate "2020.12.19"]
[EventType "team-tourn"]
[EventCountry "NET"]
[SourceTitle "playchess.com"]
[Source "ChessBase"]
[SourceQuality "1"]
[TimeControl "900+5"]

1. e4 {[%emt 0:00:00]} c5 {[%emt 0:00:03]} 2. Nc3 {[%emt 0:00:07]} Nc6 {[%emt 0:00:03]} 3. Nf3 {[%emt 0:00:10]} e5 {[%emt 0:00:32]} 4. g3 {[%emt 0:00:04]} d6 {[%emt 0:00:06]} 5. Bg2 {[%emt 0:00:15]} Bg4 {[%emt 0:00:13]} 6. h3 {[%emt 0:00:04]} Be6 {[%emt 0:00:01]} 7. d3 {[%emt 0:00:05]} Be7 {[%emt 0:00:08]} 8. Nh2 {[%emt 0:00:15]} Qd7 {[%emt 0:00:13]} 9. g4 {[%emt 0:00:04]} h5 {[%emt 0:00:17]} 10. Be3 {[%emt 0:00:17]} hxg4 {[%emt 0:00:06]} 11. Nxg4 {[%emt 0:00:08]} Nd4 {[%emt 0:00:33]} 12. Nd5 {[%emt 0:00:15]} Bh4 {[%emt 0:01:26]} 13. c3 {[%emt 0:00:18]} Nc6 {[%emt 0:00:08]} 14. Qe2 {[%emt 0:00:35]} Nge7 {[%emt 0:00:07]} 15. O-O-O {[%emt 0:00:14]} O-O-O {[%emt 0:00:09]} 16. f4 {[%emt 0:00:57]} exf4 {[%emt 0:00:41]} 17. Bxf4 {[%emt 0:00:18]} Ng6 {[%emt 0:00:05]} 18. Be3 {[%emt 0:00:28]} Rde8 {[%emt 0:00:21]} 19. c4 {[%emt 0:03:12]} f5 {[%emt 0:00:47]} 20. Nf2 {[%emt 0:00:27]} Bg3 {[%emt 0:01:35]} 21. exf5 {[%emt 0:00:36]} Bxd5 {[%emt 0:00:23]} 22. cxd5 {[%emt 0:00:36]} Nd4 {[%emt 0:01:19]} 23. Qd2 {[%emt 0:01:59]} Rxe3 {[%emt 0:00:12]} 24. fxg6 {[%emt 0:02:27]} Re2 {[%emt 0:00:19]} 25. Qa5 {[%emt 0:00:05]} Bxf2 {[%emt 0:01:05]} 26. h4 {[%emt 0:00:35]} Be3+ {[%emt 0:00:05]} 27. Kb1 {[%emt 0:00:06]} Rxg2 {[%emt 0:00:04]} 28. Qxa7 {[%emt 0:00:03]} Rxb2+ {[%emt 0:00:26]} 29. Ka1 {[%emt 0:00:55]} Qb5 {[%emt 0:00:03]} 0-1

[Event "EWCCC Online Preliminary-D 2020"]
[Site "Online"]
[Date "2020.12.19"]
[Round "9.4"]
[White "Rubsamen, Anais"]
[Black "Salimova, Nurgyul"]
[Result "0-1"]
[ECO "A07"]
[WhiteElo "1692"]
[BlackElo "2397"]
[Annotator "RC"]
[PlyCount "70"]
[EventDate "2020.12.19"]
[EventType "team-tourn"]
[EventCountry "NET"]
[SourceTitle "playchess.com"]
[Source "ChessBase"]
[SourceQuality "1"]
[TimeControl "900+5"]

1. Nf3 {[%emt 0:00:05]} d5 {[%emt 0:00:03]} 2. g3 {[%emt 0:00:01]} Nf6 {[%emt 0:00:02]} 3. Bg2 {[%emt 0:00:02]} g6 {[%emt 0:00:17]} 4. O-O {[%emt 0:00:01]} Bg7 {[%emt 0:00:02]} 5. c4 {[%emt 0:00:06]} O-O {[%emt 0:00:03]} 6. d3 {[%emt 0:00:04]} c5 {[%emt 0:00:44]} 7. Bg5 {[%emt 0:00:48]} dxc4 {[%emt 0:00:27]} 8. dxc4 {[%emt 0:00:04]} Ne4 {[%emt 0:00:12]} 9. Qc2 {[%emt 0:00:09]} Nxg5 {[%emt 0:00:40]} 10. Nxg5 {[%emt 0:00:04]} Nc6 {[%emt 0:00:05]} 11. Bxc6 {[%emt 0:00:30]} bxc6 {[%emt 0:00:04]} 12. Nf3 {[%emt 0:00:06]} Bf5 {[%emt 0:00:14]} 13. e4 {[%emt 0:00:14]} Bg4 {[%emt 0:00:14]} 14. Nbd2 {[%emt 0:00:03]} Rb8 {[%emt 0:00:09]} 15. Rab1 {[%emt 0:00:06]} Qa5 {[%emt 0:01:20]} 16. b3 {[%emt 0:00:10]} Rfd8 {[%emt 0:00:12]} 17. Kg2 {[%emt 0:00:20]} Bh6 {[%emt 0:01:11]} 18. Rfd1 {[%emt 0:00:18]} Bxd2 {[%emt 0:00:19]} 19. b4 {[%emt 0:00:30]} Bxb4 {[%emt 0:00:23]} 20. Rxd8+ {[%emt 0:00:26]} Rxd8 {[%emt 0:00:03]} 21. Ne5 {[%emt 0:00:01]} Bd7 {[%emt 0:00:27]} 22. Rd1 {[%emt 0:00:06]} Be8 {[%emt 0:00:10]} 23. Rxd8 {[%emt 0:01:25]} Qxd8 {[%emt 0:00:03]} 24. Qa4 {[%emt 0:00:01]} Bc3 {[%emt 0:00:27]} 25. Nf3 {[%emt 0:00:10]} Qd7 {[%emt 0:00:14]} 26. Qa3 {[%emt 0:00:06]} Bd4 {[%emt 0:00:05]} 27. Qa6 {[%emt 0:00:19]} f6 {[%emt 0:00:06]} 28. Qa4 {[%emt 0:00:12]} Bf7 {[%emt 0:00:04]} 29. Qb3 {[%emt 0:00:25]} Kg7 {[%emt 0:00:07]} 30. a4 {[%emt 0:00:07]} Qe6 {[%emt 0:00:17]} 31. Nd2 {[%emt 0:00:02]} f5 {[%emt 0:00:05]} 32. exf5 {[%emt 0:00:10]} Qe2 {[%emt 0:00:21]} 33. Nf3 {[%emt 0:00:27]} Bxc4 {[%emt 0:00:09]} 34. Qb1 {[%emt 0:00:15]} Qxf2+ {[%emt 0:00:11]} 35. Kh1 {[%emt 0:00:02]} Qxf3# {[%emt 0:00:02]} 0-1